[Event "Czech Open-GM 2022"]
[Site "Pardubice"]
[Date "2022.07.22"]
[Round "1.4"]
[White "Rakshitta Ravi"]
[Black "Stocek, Jiri"]
[Result "1/2-1/2"]
[ECO "A05"]
[WhiteElo "2185"]
[BlackElo "2548"]
[Annotator "TA"]
[PlyCount "120"]
[EventDate "2022.07.22"]
[EventType "swiss"]
[EventCountry "CZE"]
[SourceTitle "playchess.com"]
[Source "ChessBase"]
[SourceQuality "1"]
[TimeControl "40/5400+30:1800+30"]

{[%evp 11,120,0,22,12,13,0,25,20,20,20,12,18,22,16,16,8,31,0,29,0,0,0,0,0,0,-13,0,0,0,-50,-22,-30,0,0,0,-45,43,-11,0,0,0,-29,-42,-56,-53,-51,-45,-50,0,0,0,-25,0,-6,0,0,10,10,10,0,47,0,8,8,8,8,8,8,8,8,8,0,0,0,0,0,0,0,0,0,0,0,0,0,0,0,0,0,0,0,0,0,0,0,0,0,0,0,0,0,0,0,0,0,0,0,0,0,0,0,0]} 1. Nf3 {[%emt 0:01:19]} Nf6 {[%emt 0:02:10]} 2. g3 {[%emt 0:00:07]} d5 {[%emt 0:01:00]} 3. d4 {[%emt 0:00:28]} Bf5 {[%emt 0:02:43]} 4. Bg2 {[%emt 0:00:16]} e6 {[%emt 0:00:08]} 5. c4 {[%emt 0:00:44]} c6 {[%emt 0:00:49]} 6. Nc3 {[%emt 0:00:57]} Nbd7 {[%emt 0:01:07]} 7. Qb3 {[%emt 0:04:07] D11: Slav Defence: 3 Nf3 sidelines and 3...Nf6 4 e3 Bg4.} Qb6 {[%emt 0:05:03]} 8. c5 {[%emt 0:00:36]} Qa6 {[%emt 0:03:49] Recently 8...Qc7 got a lot of attention.} 9. Nh4 {[%emt 0:04:02] White has an edge.} b6 {[%emt 0:09:22]} 10. Nxf5 {[%emt 0:06:23]} exf5 {[%emt 0:00:14]} 11. cxb6 {[%emt 0:01:37]} axb6 {[%emt 0:03:10] [#]} 12. Qc2 $146 {[%emt 0:00:33]} ({Predecessor:} 12. O-O Be7 13. Qc2 g6 14. Bh6 Ng4 15. Qd2 Nxh6 16. Qxh6 Nf6 17. Qg7 Rg8 18. Qh6 {0-1 (54) Khmelniker,I (2493)-Balint,V (2334) Douglas 2016}) 12... g6 {[%emt 0:00:36]} 13. O-O {[%emt 0:00:23][%cal Og3g4]} h5 {[%emt 0:02:28]} 14. f3 {[%emt 0:12:02]} c5 {[%emt 0:20:59]} 15. e4 {[%emt 0:05:45]} cxd4 {[%emt 0:00:48]} 16. Nxd5 {[%emt 0:00:40]} Nxd5 {[%emt 0:00:22]} 17. exd5 {[%emt 0:00:06] [#] Strongly threatening Re1+.} Bc5 {[%emt 0:02:14] Hoping for ...d3+.} 18. Re1+ {[%emt 0:03:06]} Kf8 {[%emt 0:00:34]} 19. Kh1 {[%emt 0:05:18]} h4 {[%emt 0:01:21] ...hxg3 is the strong threat.} 20. Bf4 {[%emt 0:05:15]} (20. g4 $11) 20... Qb7 {[%emt 0:02:36]} 21. Qb3 {[%emt 0:09:41]} hxg3 {[%emt 0:08:50]} 22. Bxg3 {[%emt 0:00:50]} Kg7 {[%emt 0:00:18]} 23. Rad1 {[%emt 0:03:22]} b5 {[%emt 0:10:12]} (23... Nf6 $15) 24. a3 {[%emt 0:01:38]} (24. d6 $14 Rae8 25. Bf1) 24... Ra6 {[%emt 0:02:45]} 25. Bf1 {[%emt 0:05:15]} Rb6 {[%emt 0:00:41]} 26. Rc1 {[%emt 0:08:27]} Bd6 {[%emt 0:09:06] Threatens to win with ...Bxg3.} 27. Bxd6 {[%emt 0:01:23]} Rxd6 {[%emt 0:00:03]} 28. Qxb5 {[%emt 0:00:23]} Rb6 {[%emt 0:05:12]} 29. Qc4 {[%emt 0:01:21]} Rxb2 {[%emt 0:02:00]} (29... Rh4 $1 $15 30. b4 Nf6) 30. Qxd4+ $11 {[%emt 0:00:26]} Nf6 {[%emt 0:00:32]} 31. Bg2 {[%emt 0:02:27] aiming for Rc6.} ({But not} 31. Rc6 Rbxh2+ 32. Kg1 Qb2 33. Qxb2 Rxb2 $15) 31... Qb6 {[%emt 0:01:51]} 32. Red1 {[%emt 0:05:26] [#]} Qd6 $1 {[%emt 0:00:19][%csl Gh8][%cal Rd6h2]} 33. f4 {[%emt 0:00:05]} Qb6 {[%emt 0:00:45]} 34. Qxb6 {[%emt 0:03:13]} Rxb6 {[%emt 0:00:03]} 35. d6 {[%emt 0:01:05]} Rd8 {[%emt 0:01:26]} (35... Ne4 $11 {is more appropriate.} 36. Bxe4 fxe4) 36. Rc6 {[%emt 0:00:20]} (36. a4 $1 $14 {feels stronger.}) 36... Rb2 {[%emt 0:00:04] The position is equal.} 37. Kg1 {[%emt 0:00:42]} Ra2 {[%emt 0:01:17]} 38. Rc3 {[%emt 0:03:56]} Ne4 {[%emt 0:00:51]} 39. Bxe4 {[%emt 0:05:02]} fxe4 {[%emt 0:00:05][%mdl 4096] Endgame KRR-KRR} 40. d7 {[%emt 0:01:09]} Kf8 {[%emt 0:01:02]} 41. Rd4 {[%emt 0:03:41]} f5 {[%emt 0:02:17]} 42. a4 {[%emt 0:02:23]} Ke7 {[%emt 0:12:06]} 43. Rc7 {[%emt 0:03:07]} Ra1+ {[%emt 0:06:51]} 44. Kf2 {[%emt 0:03:29]} Ra2+ {[%emt 0:01:01]} 45. Kg3 {[%emt 0:01:26]} Ra3+ {[%emt 0:00:27]} 46. Kh4 {[%emt 0:01:06]} Rd3 {[%emt 0:00:19]} 47. Rxd3 {[%emt 0:02:21]} exd3 {[%emt 0:00:42][%cal Be4d3,Bd3d2][%mdl 32] KR-KR} 48. Rc1 {[%emt 0:00:02]} Rxd7 {[%emt 0:01:54]} 49. Kg5 {[%emt 0:00:08]} Kf7 {[%emt 0:02:39]} (49... d2 $5 50. Rd1 Kf7 $11) 50. a5 {[%emt 0:03:29]} d2 {[%emt 0:02:51]} 51. Rd1 {[%emt 0:00:02]} Rd3 {[%emt 0:00:25] ( -> ...Rh3)} (51... Rd8 $5 52. Kh4 Kf6 $11) 52. Kh4 {[%emt 0:00:02] Prevents Rh3+.} Kg7 {[%emt 0:01:07]} 53. a6 {[%emt 0:00:21]} Kh6 {[%emt 0:00:28]} 54. a7 {[%emt 0:00:05]} Ra3 {[%emt 0:00:04]} 55. Rxd2 {[%emt 0:00:03]} Rxa7 {[%emt 0:00:04]} 56. Rd3 {[%emt 0:00:18]} Ra2 {[%emt 0:01:16]} 57. h3 {[%emt 0:01:18]} Rg2 {[%emt 0:00:20]} 58. Rd8 {[%emt 0:00:20]} Kg7 {[%emt 0:00:39]} 59. Rd6 {[%emt 0:00:09]} Kf7 {[%emt 0:01:58]} 60. Ra6 {[%emt 0:00:04]} Rg1 {[%emt 0:00:16] Weighted Error Value: White=0.09 (flawless) /Black=0.10 (very precise)} 1/2-1/2

[Event "Czech Open-GM 2022"]
[Site "Pardubice"]
[Date "2022.07.22"]
[Round "1.5"]
[White "Harsha Bharathakoti"]
[Black "Shatil, Shir"]
[Result "1-0"]
[ECO "A04"]
[WhiteElo "2547"]
[BlackElo "2185"]
[Annotator "TA"]
[PlyCount "59"]
[EventDate "2022.07.22"]
[EventType "swiss"]
[EventCountry "CZE"]
[SourceTitle "playchess.com"]
[Source "ChessBase"]
[SourceQuality "1"]
[TimeControl "40/5400+30:1800+30"]

{[%evp 12,59,52,52,51,47,56,52,47,37,45,41,50,52,57,51,57,46,82,82,79,52,66,65,72,82,104,110,96,95,103,94,150,113,111,71,89,99,95,85,157,99,102,97,557,387,378,364,329,312]} 1. Nf3 {[%emt 0:01:50]} c5 {[%emt 0:00:37]} 2. c4 {[%emt 0:00:21]} Nf6 {[%emt 0:00:12]} 3. Nc3 {[%emt 0:01:16]} e6 {[%emt 0:00:05]} 4. d4 {[%emt 0:04:14]} cxd4 {[%emt 0:00:35]} 5. Nxd4 {[%emt 0:00:08]} a6 {[%emt 0:04:14]} 6. e4 {[%emt 0:05:58]} d6 {[%emt 0:00:15]} 7. Be2 {[%emt 0:01:32]} Be7 {[%emt 0:01:10] B41: Sicilian: Kan Variation: 5 c4.} 8. Be3 {[%emt 0:00:44]} b6 {[%emt 0:02:41]} 9. Bf3 {[%emt 0:07:54][%cal Oe4e5]} Ra7 $1 {[%emt 0:15:15] White is slightly better.} 10. Qa4+ {[%emt 0:10:18]} Nfd7 {[%emt 0:13:56]} 11. O-O {[%emt 0:18:25]} O-O {[%emt 0:01:03] [#]} 12. Be2 $146 {[%emt 0:05:32]} ({Predecessor:} 12. Rfd1 Rc7 13. Be2 Bb7 14. Rac1 Qc8 15. Qc2 Nf6 16. f3 Nbd7 17. Bf1 Re8 18. Qd2 {1-0 (42) Tregubov,P (2582)-Anurag,M (2387) Caleta 2016}) 12... Bb7 {[%emt 0:06:15]} 13. Rfd1 {[%emt 0:10:49]} Ra8 {[%emt 0:04:25]} 14. Rac1 {[%emt 0:03:12]} Nf6 {[%emt 0:03:20]} 15. e5 {[%emt 0:00:40]} Ne8 {[%emt 0:02:59]} 16. Bf3 {[%emt 0:07:27]} Qc7 {[%emt 0:12:15]} 17. exd6 {[%emt 0:04:13] 0x0.0013b8d94379dp-1022s more active pieces.} Bxd6 {[%emt 0:01:02]} 18. h3 {[%emt 0:00:04]} Nd7 {[%emt 0:01:27]} 19. Bxb7 {[%emt 0:02:52]} Qxb7 {[%emt 0:02:53]} 20. Qc6 {[%emt 0:00:04]} Ra7 {[%emt 0:15:15]} 21. Ne4 {[%emt 0:00:16]} Bb8 {[%emt 0:01:38]} ({Black should play} 21... Bc7) 22. b4 {[%emt 0:06:14]} Nef6 {[%emt 0:03:20]} 23. Nd6 {[%emt 0:00:15]} Bxd6 {[%emt 0:00:42]} 24. Qxd6 {[%emt 0:00:04]} Rc8 {[%emt 0:01:53]} 25. c5 {[%emt 0:02:42]} Ne4 {[%emt 0:01:47] [#]} (25... bxc5 $142 26. bxc5 Ne8) 26. Qe7 {[%emt 0:00:28]} (26. Qh2 $142 $1) 26... bxc5 $16 {[%emt 0:01:00]} 27. bxc5 {[%emt 0:00:36] aiming for c6.} Nexc5 {[%emt 0:02:44][%mdl 8192]} (27... Ndxc5 $2 28. Qxb7 Rxb7 29. Nb3 $18) (27... Qa8 $16 {is more resistant.}) 28. Nb3 {[%emt 0:03:49][%cal Rb3c5]} Raa8 {[%emt 0:00:59]} 29. Nxc5 {[%emt 0:00:27]} Nxc5 {[%emt 0:00:20]} 30. Bxc5 {[%emt 0:00:03] Weighted Error Value: White=0.16 (very precise) /Black=0.47} 1-0

[Event "Czech Open-GM 2022"]
[Site "Pardubice"]
[Date "2022.07.22"]
[Round "1.6"]
[White "Keetman, Maaike"]
[Black "Noe, Christopher"]
[Result "0-1"]
[ECO "B10"]
[WhiteElo "2181"]
[BlackElo "2505"]
[Annotator "TA"]
[PlyCount "78"]
[EventDate "2022.07.22"]
[EventType "swiss"]
[EventCountry "CZE"]
[SourceTitle "playchess.com"]
[Source "ChessBase"]
[SourceQuality "1"]
[TimeControl "40/5400+30:1800+30"]

{[%evp 9,78,39,38,33,18,15,24,2,9,-16,-11,0,0,-7,-7,-25,-33,-26,-20,-66,-66,-72,-66,-70,-45,-38,-53,-59,-49,-50,0,-37,0,0,0,0,0,-36,0,0,0,-5,-7,-121,-127,-161,-120,-145,-164,-427,-300,-280,-297,-281,-288,-482,-478,-697,-690,-678,-588,-567,-546,-542,-539,-518,-477,-465,-465,-426,-421]} 1. e4 {[%emt 0:00:03]} c6 {[%emt 0:00:06]} 2. Nc3 {[%emt 0:00:14][%cal Bb1c3,Bc3e4,Be4g3][%mdl 32]} d5 {[%emt 0:00:06]} 3. Nf3 {[%emt 0:00:04]} Qa5 {[%emt 0:00:15] [#]} 4. a3 $146 {[%emt 0:06:22]} ({Predecessor:} 4. h3 dxe4 5. Nxe4 Bf5 6. Qe2 e6 7. c3 Nd7 8. g4 Bg6 9. d4 Ngf6 10. Nxf6+ Nxf6 11. Ne5 {0-1 (36) Lu,S (2624)-Sunilduth Lyna,N (2603) Xingtai 2019}) 4... dxe4 {[%emt 0:05:20]} 5. Nxe4 {[%emt 0:00:45]} Bf5 {[%emt 0:00:19]} 6. Ng3 {[%emt 0:03:16] B11: Caro-Kann: Two Knights Variation.} Bg6 {[%emt 0:00:25]} 7. b4 {[%emt 0:05:35]} Qc7 {[%emt 0:02:54]} 8. Bb2 {[%emt 0:01:12] White has an edge.} Nd7 {[%emt 0:01:27]} 9. Bc4 {[%emt 0:08:29]} Ngf6 {[%emt 0:04:07]} 10. Qe2 {[%emt 0:03:40]} e6 {[%emt 0:14:37]} 11. O-O {[%emt 0:07:40]} Be7 {[%emt 0:13:48]} 12. Rfe1 {[%emt 0:04:34]} O-O {[%emt 0:07:41]} 13. Bb3 {[%emt 0:16:51]} a5 {[%emt 0:07:07]} 14. Bc3 {[%emt 0:04:25]} (14. Bxe6 $11 {is superior.} fxe6 15. Qxe6+ Rf7 16. Ng5) 14... Nd5 {[%emt 0:12:42]} 15. Bxd5 {[%emt 0:03:44]} cxd5 {[%emt 0:00:10]} 16. bxa5 {[%emt 0:00:38]} Rfc8 {[%emt 0:05:59]} ({But not} 16... Bxc2 17. Rec1 Bg6 {[#]} 18. Bxg7 $1 Qxa5 19. Bxf8 Bxf8 20. Qe3 $16) 17. h4 h6 {[%emt 0:08:22][%mdl 1024] Black has compensation.} 18. h5 {[%emt 0:08:58]} Bh7 {[%emt 0:00:07]} 19. Nd4 {[%emt 0:03:46][%cal Od4e6] [#] Threatens to win with Nxe6!} Qc4 {[%emt 0:04:22]} (19... Bc5 $15) 20. Ngf5 {[%emt 0:07:15]} Bf8 {[%emt 0:02:31]} 21. Qxc4 {[%emt 0:07:05]} Rxc4 {[%emt 0:00:16]} 22. Ne3 {[%emt 0:00:04] Pair of Knights!} Rcc8 {[%emt 0:01:59]} 23. Nb3 {[%emt 0:01:06]} Nb8 {[%emt 0:02:49]} 24. Bb4 {[%emt 0:01:47]} Nc6 {[%emt 0:01:34]} 25. Bxf8 {[%emt 0:00:05]} Kxf8 {[%emt 0:00:12]} 26. c4 {[%emt 0:04:50]} (26. d3 $11) 26... d4 $17 {[%emt 0:00:50]} 27. Ng4 {[%emt 0:00:01]} Bc2 {[%emt 0:01:33]} 28. Nc5 {[%emt 0:00:20]} Ke7 {[%emt 0:01:34] Prevents Nd7.} ({Much worse is} 28... Nxa5 $6 29. Nd7+ Ke7 30. Nb6 $11) 29. Nxb7 {[%emt 0:01:17]} (29. d3) 29... Rc7 {[%emt 0:00:12]} 30. a6 {[%emt 0:00:36]} Rxa6 {[%emt 0:00:15]} 31. Nc5 {[%emt 0:00:06]} Ra5 {[%emt 0:00:15]} 32. Ne4 {[%emt 0:01:06]} (32. Ra2 Bf5 33. Nb3 Bxg4 34. Nxa5 Nxa5 35. f3) 32... f5 $19 {[%emt 0:01:03] Black is clearly winning.} 33. Nef6 {[%emt 0:00:33]} (33. f3 $142 fxg4 34. fxg4) 33... gxf6 {[%emt 0:00:39]} 34. Nxh6 {[%emt 0:00:07]} Rc8 {[%emt 0:00:37]} 35. Ra2 {[%emt 0:00:19]} Bd3 {[%emt 0:00:54] aiming for ...Rh8.} 36. Rb2 {[%emt 0:00:06]} Ra7 {[%emt 0:00:19] Inhibits Rb7+.} 37. Rb3 {[%emt 0:00:28]} Rh8 {[%emt 0:00:22]} 38. Ng8+ {[%emt 0:01:02]} Rxg8 {[%emt 0:00:10]} 39. Rxd3 {[%emt 0:00:03]} Kd6 {[%emt 0:00:24] Weighted Error Value: White=0.31/Black=0.14 (very precise)} ({Not} 39... Ne5 $2 40. Rb3 $19) 0-1

[Event "Czech Open-GM 2022"]
[Site "Pardubice"]
[Date "2022.07.22"]
[Round "1.7"]
[White "Lokander, Martin"]
[Black "Kawulok, Marek"]
[Result "1-0"]
[ECO "E29"]
[WhiteElo "2483"]
[BlackElo "2181"]
[Annotator "TA"]
[PlyCount "97"]
[EventDate "2022.07.22"]
[EventType "swiss"]
[EventCountry "CZE"]
[SourceTitle "playchess.com"]
[Source "ChessBase"]
[SourceQuality "1"]
[TimeControl "40/5400+30:1800+30"]

{[%evp 13,97,0,2,-32,-40,-43,-34,-35,7,0,0,0,0,0,0,-59,21,27,47,49,85,79,91,76,122,118,120,122,124,122,120,89,94,95,118,121,118,112,119,106,112,107,104,95,137,118,110,99,126,126,126,126,137,126,144,130,130,130,130,126,129,87,256,256,256,256,241,241,678,630,6279,6279,5771,5567,5514,5297,2468,2301,29981,29981,29995,29996,29996,29997,29997,29998]} 1. d4 {[%emt 0:00:03]} Nf6 {[%emt 0:00:07]} 2. c4 {[%emt 0:00:06]} e6 {[%emt 0:00:09]} 3. Nc3 {[%emt 0:00:18]} Bb4 {[%emt 0:00:08]} 4. e3 {[%emt 0:00:05]} O-O {[%emt 0:00:17]} 5. Bd3 {[%emt 0:00:11]} c5 {[%emt 0:04:02]} 6. a3 {[%emt 0:01:42]} Bxc3+ {[%emt 0:00:50]} 7. bxc3 {[%emt 0:00:04]} Nc6 {[%emt 0:00:32]} 8. Rb1 {[%emt 0:01:35] E29: Nimzo-Indian: Sämisch: 5...0-0 6 e3 c5 7 Bd3 Nc6.} d6 {[%emt 0:12:28] is the legacy move (8...b6).} 9. Nf3 {[%emt 0:06:38][%cal Bg1f3,Bf3d2,Bd2f1,Bf1e3][%mdl 32]} e5 {[%emt 0:09:03] And now ...e4 would win.} 10. d5 {[%emt 0:00:35] Black is slightly better.} Ne7 {[%emt 0:00:43] Threatens to win with ...e4.} (10... e4 $5 {[%cal Rc6a5]} 11. dxc6 bxc6 $15) 11. e4 {[%emt 0:01:07]} Ng6 {[%emt 0:13:02] [#]} 12. g3 $146 {[%emt 0:00:33]} ({Predecessor:} 12. O-O b6 13. Be3 Nh5 14. g3 Bg4 15. Re1 h6 16. Rb5 Qc8 17. Rb1 Nf6 18. Bd2 Bh5 {0-1 (57) Wessel,R-Philipps,S freechess.de 2021}) 12... b6 {[%emt 0:01:00]} 13. Nd2 {[%emt 0:06:24]} Bh3 {[%emt 0:04:16]} 14. Rg1 {[%emt 0:04:38]} (14. Qe2 $11) 14... Bd7 {[%emt 0:05:45]} (14... Ne8 $1 $15) 15. h4 $11 {[%emt 0:02:55]} h5 {[%emt 0:03:25]} 16. Nf1 {[%emt 0:01:43]} Ng4 {[%emt 0:09:34]} 17. f3 {[%emt 0:04:46]} Nh6 {[%emt 0:00:05]} 18. Bg5 {[%emt 0:04:01]} f6 {[%emt 0:02:28]} (18... Ne7 $142) 19. Bxh6 $16 {[%emt 0:05:23]} gxh6 {[%emt 0:00:06]} 20. Ne3 {[%emt 0:01:09]} Kh7 {[%emt 0:02:56]} 21. Kd2 {[%emt 0:01:11]} Qe8 {[%emt 0:03:37]} 22. Qf1 {[%emt 0:01:43]} Rg8 {[%emt 0:01:42]} 23. f4 {[%emt 0:00:30]} Ne7 {[%emt 0:02:38]} 24. f5 {[%emt 0:02:09]} Qf7 {[%emt 0:01:47]} 25. Be2 {[%emt 0:00:14]} Nc8 {[%emt 0:05:14]} 26. Qd1 {[%emt 0:00:35]} Be8 {[%emt 0:00:08]} 27. Rg2 {[%emt 0:05:32] White is more active.} (27. Kd3 {is interesting.} a6 28. a4 Kg7 29. Ra1) 27... Rb8 {[%emt 0:00:45]} 28. Bf3 {[%emt 0:00:32]} Ne7 {[%emt 0:04:23]} 29. Qe2 {[%emt 0:00:09]} Rb7 {[%emt 0:00:14]} 30. a4 {[%emt 0:01:41]} a5 {[%emt 0:00:27]} 31. Rbg1 {[%emt 0:01:39]} Rb8 {[%emt 0:00:07]} 32. Kc1 {[%emt 0:05:12][%cal Bd2c1,Bc1b2,Bb2a3][%mdl 32]} Rd8 {[%emt 0:00:12]} 33. Qd1 {[%emt 0:00:16]} Rb8 {[%emt 0:00:15]} 34. Kb2 {[%emt 0:01:00]} Rd8 {[%emt 0:00:20]} 35. Ka3 {[%emt 0:00:19]} Rb8 {[%emt 0:00:14]} 36. g4 {[%emt 0:01:29]} hxg4 {[%emt 0:02:35]} 37. Bxg4 {[%emt 0:02:20]} Qf8 $2 {[%emt 0:06:24] A mistake that costs the game.} (37... Kh8 $16) 38. Bh5 $18 {[%emt 0:06:04]} Rxg2 {[%emt 0:04:59]} 39. Rxg2 {[%emt 0:00:04]} (39. Nxg2 Bxh5 40. Qxh5 Qg7 $15) 39... Bxh5 {[%emt 0:00:07]} 40. Qxh5 {[%emt 0:00:03]} Qe8 $2 {[%emt 0:00:25] [#]} (40... Rb7 41. Kb3 Ng8) 41. Rg6 $1 {[%emt 0:34:01][%mdl 512]} Nxg6 {[%emt 0:20:28]} (41... Ng8 42. Ng4) 42. Ng4 {[%emt 0:00:00]} Qf7 {[%emt 0:00:07]} 43. Qxh6+ {[%emt 0:00:00]} Kg8 {[%emt 0:00:07]} 44. fxg6 {[%emt 0:00:00]} Qg7 {[%emt 0:00:50]} 45. Qh5 {[%emt 0:00:00] Nh6+ is the strong threat.} Qh8 {[%emt 0:00:32]} 46. Qf5 {[%emt 0:00:00] White mates.} Qxh4 {[%emt 0:00:49]} 47. Qe6+ {[%emt 0:00:00]} ({And not} 47. Qd7 Rf8 $11) 47... Kh8 {[%emt 0:01:05] [#]} 48. Qf7 $1 {[%emt 0:00:00]} Rg8 {[%emt 0:05:46]} 49. Nxf6 {[%emt 0:00:00] Weighted Error Value: White=0.08 (flawless) /Black=0.39} 1-0

[Event "Czech Open-GM 2022"]
[Site "Pardubice"]
[Date "2022.07.22"]
[Round "1.8"]
[White "Mondrzycki, Bartlomiej"]
[Black "Bronstein, Or"]
[Result "1-0"]
[ECO "A46"]
[WhiteElo "2180"]
[BlackElo "2476"]
[Annotator "TA"]
[PlyCount "105"]
[EventDate "2022.07.22"]
[EventType "swiss"]
[EventCountry "CZE"]
[SourceTitle "playchess.com"]
[Source "ChessBase"]
[SourceQuality "1"]
[TimeControl "40/5400+30:1800+30"]

{[%evp 20,105,0,-16,-23,-31,0,0,0,0,0,0,14,0,0,0,13,8,45,45,46,45,47,18,33,20,25,27,25,0,56,43,58,0,-40,-60,103,100,104,127,168,64,332,331,321,302,373,367,363,347,402,395,415,395,401,406,595,593,595,586,629,658,716,710,978,950,988,1021,1005,964,1313,1304,1245,1183,2013,2051,1737,1778,1621,1627,29985,29986,29987,29988,29988,29988,29988,29989]} 1. d4 {[%emt 0:00:03]} Nf6 {[%emt 0:02:01]} 2. Nf3 {[%emt 0:00:04]} d5 {[%emt 0:00:31]} 3. c3 {[%emt 0:00:27]} e6 {[%emt 0:02:16]} 4. Bf4 {[%emt 0:01:01]} Bd6 {[%emt 0:01:32]} 5. e3 {[%emt 0:00:17]} O-O {[%emt 0:01:10]} 6. Nbd2 {[%emt 0:00:50]} c5 {[%emt 0:06:59]} 7. Bg3 {[%emt 0:04:44]} b6 {[%emt 0:02:01]} 8. Bd3 {[%emt 0:01:06]} Bb7 {[%emt 0:01:34]} 9. Ne5 {[%emt 0:10:18]} Nc6 {[%emt 0:02:10]} 10. O-O {[%emt 0:10:58]} Qc7 {[%emt 0:12:26]} 11. f4 {[%emt 0:04:03]} Ne7 {[%emt 0:00:20] D02: 1 d4 d5 2 Nf3 sidelines, including 2...Nf6 3 g3 and 2...Nf6 3 Bf4.} 12. Qb1 {[%emt 0:09:36]} c4 {[%emt 0:23:14]} 13. Bc2 {[%emt 0:01:20] [#]} b5 $146 {[%emt 0:03:41] The position is equal.} ({Predecessor:} 13... Nf5 14. Bf2 Be7 15. Bxf5 exf5 16. Qxf5 Ne4 17. Nxe4 Bc8 18. Qh5 dxe4 19. Bh4 g6 {1-0 (50) Veleshnja,Z (2155)-Krstic,M (2171) Porto Carras 2018}) 14. Rf3 {[%emt 0:16:35]} Nf5 {[%emt 0:14:28] Inhibits Bh4.} 15. Bf2 {[%emt 0:13:26]} Be7 {[%emt 0:06:23]} 16. Bxf5 {[%emt 0:04:53]} exf5 {[%emt 0:00:01]} 17. Qxf5 {[%emt 0:00:08]} Bc8 {[%emt 0:00:16]} 18. Qc2 {[%emt 0:01:53]} Ne4 {[%emt 0:04:07]} (18... Ne8 $5 {[%cal Rf7f6]}) 19. Nxe4 {[%emt 0:03:00]} dxe4 {[%emt 0:00:01]} 20. Qxe4 {[%emt 0:01:08]} Bb7 {[%emt 0:00:08] Prevents Qc6.} 21. Qf5 {[%emt 0:07:46] next Rh3 is good for White.} Bxf3 {[%emt 0:01:39]} 22. gxf3 {[%emt 0:00:42]} g6 {[%emt 0:00:53]} 23. Qe4 {[%emt 0:00:50]} Bd6 {[%emt 0:06:22]} 24. Bh4 {[%emt 0:02:12]} Rae8 {[%emt 0:00:14]} (24... Kg7 $11) 25. Qd5 {[%emt 0:02:10]} Kg7 {[%emt 0:03:21]} 26. Qxb5 {[%emt 0:02:05]} (26. a4 $1 $14) 26... Rb8 $15 {[%emt 0:02:43]} 27. Qd5 {[%emt 0:00:13]} Be7 $2 {[%emt 0:01:40]} (27... Bxe5 $15 28. Qxe5+ (28. fxe5 Rxb2 29. Qe4 Qd7 $15) 28... Qxe5 29. fxe5 Rxb2) 28. Bxe7 $16 {[%emt 0:00:41]} Qxe7 {[%emt 0:00:01]} 29. Nxc4 {[%emt 0:00:51] aiming for b3.} Rfc8 {[%emt 0:00:51][%cal Oc8c4] [#] Threatens to win with ...Rxc4!} 30. b3 {[%emt 0:01:07]} (30. Re1 $18) 30... f6 $2 {[%emt 0:00:41][%mdl 8192] Loses the game.} (30... a5 $1 $14) 31. e4 $18 {[%emt 0:00:26]} Rd8 {[%emt 0:00:10]} 32. Qa5 {[%emt 0:00:12]} Qd7 {[%emt 0:00:17]} 33. Kg2 {[%emt 0:00:09]} Rb5 {[%emt 0:00:04]} 34. Qa4 {[%emt 0:00:22]} Qb7 {[%emt 0:01:26]} 35. d5 {[%emt 0:00:26]} Rc5 {[%emt 0:01:03]} 36. Rd1 {[%emt 0:00:22]} a5 {[%emt 0:00:21]} 37. Rd3 {[%emt 0:00:29]} h6 {[%emt 0:00:45]} (37... Qc8 $142 38. Qa3 Kg8) 38. Ne3 {[%emt 0:00:23]} Rcc8 {[%emt 0:01:06]} 39. Qd4 {[%emt 0:00:12]} a4 {[%emt 0:00:15]} 40. b4 {[%emt 0:00:38]} a3 {[%emt 0:00:05]} 41. d6 {[%emt 0:03:23]} Rb8 {[%emt 0:01:52]} 42. e5 {[%emt 0:01:44]} Qf7 {[%emt 0:00:09]} 43. Nd5 {[%emt 0:02:06]} Qe6 {[%emt 0:06:01]} 44. c4 {[%emt 0:06:59]} fxe5 {[%emt 0:05:00]} 45. fxe5 {[%emt 0:00:04]} Rb7 {[%emt 0:03:22]} 46. Rxa3 {[%emt 0:04:08]} Rf8 {[%emt 0:00:27]} 47. Ra7 {[%emt 0:01:55]} Rxa7 {[%emt 0:00:37]} 48. Qxa7+ {[%emt 0:00:02] KQR-KQN} Rf7 {[%emt 0:00:01]} 49. Qd4 {[%emt 0:00:33] [#] Threatening mate with Nc7.} g5 {[%emt 0:00:18]} 50. Nc7 {[%emt 0:01:17] White mates.} Qg6 {[%emt 0:00:13]} 51. e6+ Rf6 52. Nd5 {[%emt 0:00:49]} Qc2+ {[%emt 0:00:07]} 53. Kg3 {[%emt 0:00:03] Weighted Error Value: White=0.11 (very precise) /Black=0.42} 1-0